fUSD/lending_fUSD_20260112
["ID","MTS","AMOUNT","RATE_DAILY","PERIOD"]
[401471221,1768251042645,-1000.0,0.000154,2]
[401471223,1768251042654,-171.09,0.00015414,2]
[401471225,1768251042663,-677.85,0.00015425,2]
[401471227,1768251042672,-1282.0,0.0001545,2]
[401471229,1768251042681,-150.0,0.00015456,2]
[401471231,1768251042690,-150.0,0.00015456,2]
[401471233,1768251042700,-1176.0,0.00015524,2]
[401471235,1768251042709,-574.12855637,0.00015527,2]
[401471237,1768251042718,-193.27,0.00015552,2]
[401471239,1768251042727,-433.0,0.00015568,2]
[401471241,1768251042736,-203.35,0.00015596,2]
[401471243,1768251042746,-1248.0,0.000156,2]
[401471245,1768251042755,-1176.0,0.00015668,2]
[401471247,1768251042764,-567.46461532,0.00015702,2]
[401471249,1768251042774,-170.59,0.00015706,2]
[401471251,1768251042783,-1077.0,0.00015707,2]
[401471253,1768251042792,-1077.0,0.00015717,2]
[401471255,1768251042802,-26538.0,0.00015726,2]
[401471257,1768251042811,-1176.0,0.00015728,2]
[401471259,1768251042820,-1176.0,0.00015735,2]
[401471261,1768251042830,-632.45,0.00015753,2]
[401471263,1768251042839,-1077.0,0.00015758,2]
[401471265,1768251042848,-6215.54533547,0.00015764,2]
[401471267,1768251042857,-20361.70048933,0.00015764,2]
[401471269,1768251042866,-1077.0,0.0001577,2]
[401471271,1768251042875,-500.0,0.00015783,2]
[401471273,1768251042885,-230236.5968697,0.00015784,2]
[401471275,1768251042894,-1172.6056583,0.00015784,2]
[401471277,1768251042903,-178.6163474,0.00015784,2]
[401471280,1768251042912,-57023.5927362,0.00015784,2]
[401471282,1768251042921,-195.6863039,0.00015784,2]
[401471284,1768251042931,-25864.3419484,0.00015784,2]
[401471286,1768251042940,-334.5472959,0.000158,2]
[401471287,1768251042949,-642.94,0.000158,2]
[401471290,1768251042959,-483.1,0.00015804,2]
[401471292,1768251042968,-966.2,0.00015804,2]
[401471293,1768251042982,-966.01,0.00015804,2]
[401471295,1768251042991,-966.01,0.00015804,2]
[401471298,1768251043001,-483.1,0.00015804,2]
[401471300,1768251043011,-483.1,0.00015804,2]
[401471302,1768251043021,-1176.0,0.00015808,2]
[401471304,1768251043030,-500.0,0.00015834,2]
[401471306,1768251043040,-587.0,0.00015847,2]
[401471308,1768251043050,-1077.0,0.00015864,2]
[401471310,1768251043059,-334.98115102,0.00015889,2]
[401471312,1768251043070,-800.0,0.000159,5]
[401471314,1768251043081,-1077.0,0.00015915,2]
[401471316,1768251043090,-1000.0,0.00015918,2]
[401471317,1768251043100,-171.09,0.00015941,2]
[401471320,1768251043111,-2351.0,0.00015949,2]
[401471322,1768251043120,-1077.0,0.00015953,2]
[401471324,1768251043130,-166.66,0.00015963,2]
[401471326,1768251043140,-6380.0,0.00015973,2]
[401471328,1768251043150,-249.76041872,0.00015999,2]
[401471330,1768251043159,-666.0,0.00015999,2]
[401471332,1768251043168,-9432.60016094,0.00016,2]
[401471334,1768251043178,-459923.78491251,0.00016,4]
[401471336,1768251043187,-2006.0,0.00016,2]
[401471338,1768251043197,-1000.0,0.00016,2]
[401471340,1768251043206,-5384.7712308,0.00016003,2]
[401471342,1768251043216,-1268.939339,0.00016003,2]
[401471344,1768251043225,-13886.480428,0.00016003,2]
[401471346,1768251043234,-193.27,0.00016036,2]
[401471348,1768251043244,-595.37131296,0.00016075,2]
[401471350,1768251043253,-1000.0,0.00016081,2]
[401471352,1768251043263,-1000.0,0.00016133,2]
[401471354,1768251043272,-1077.0,0.0001614,2]
[401471356,1768251043281,-6215.54533547,0.00016191,2]
[401471358,1768251043292,-20361.70048933,0.00016191,2]
[401471360,1768251043301,-150.0,0.000162,2]
[401471362,1768251043311,-150.0,0.000162,2]
[401471364,1768251043320,-150.0,0.000162,2]
[401471366,1768251043329,-150.0,0.000162,2]
[401471368,1768251043338,-150.0,0.000162,2]
[401471370,1768251043347,-150.0,0.000162,2]
[401471372,1768251043357,-150.0,0.000162,2]
[401471374,1768251043367,-150.0,0.000162,2]
[401471376,1768251043375,-150.0,0.000162,2]
[401471378,1768251043385,-150.0,0.000162,2]
[401471380,1768251043394,-150.0,0.000162,2]
[401471382,1768251043403,-150.0,0.000162,2]
[401471384,1768251043412,-150.0,0.000162,2]
[401471386,1768251043422,-5000.00233206,0.000162,5]
[401471388,1768251043431,-150.0,0.00016238,2]
[401471390,1768251043440,-150.0,0.00016239,2]
[401471392,1768251043450,-150.0,0.00016244,2]
[401471394,1768251043459,-150.0,0.00016247,2]
[401471396,1768251043468,-567.46461532,0.00016252,2]
[401471398,1768251043478,-150.0,0.00016255,2]
[401471400,1768251043487,-150.0,0.00016262,2]
[401471402,1768251043497,-150.0,0.00016267,2]
[401471404,1768251043506,-150.0,0.00016277,2]
[401471406,1768251043516,-150.0,0.00016278,2]
[401471408,1768251043525,-150.0,0.00016288,2]
[401471410,1768251043535,-150.0,0.00016295,2]
[401471412,1768251043544,-30000.0,0.00016299,2]
[401471414,1768251043553,-150.0,0.00016309,2]
[401471415,1768251043562,-150.0,0.00016315,2]
[401471416,1768251043570,-150.0,0.00016317,2]
[401471417,1768251043579,-150.0,0.00016324,2]
[401471418,1768251043588,-150.0,0.00016332,2]
[401471419,1768251043597,-150.0,0.00016333,2]
[401471420,1768251043606,-150.0,0.00016342,2]
[401471421,1768251043615,-150.0,0.00016353,2]
[401471422,1768251043625,-168.73,0.00016354,2]
[401471423,1768251043634,-150.0,0.00016357,2]
[401471424,1768251043642,-150.0,0.00016364,2]
[401471426,1768251043651,-150.0,0.00016364,2]
[401471428,1768251043661,-1000.0,0.00016366,2]
[401471430,1768251043670,-150.0,0.00016376,2]
[401471432,1768251043679,-150.0,0.00016386,2]
[401471434,1768251043688,-150.0,0.00016389,2]
[401471436,1768251043698,-150.0,0.00016391,2]
[401471438,1768251043707,-150.0,0.00016396,2]
[401471440,1768251043716,-150.0,0.000164,2]
[401471442,1768251043725,-150.0,0.000164,2]
[401471444,1768251043734,-834.0,0.000164,2]
[401471446,1768251043743,-150.0,0.00016418,2]
[401471448,1768251043752,-150.0,0.0001642,2]
[401471450,1768251043762,-150.0,0.00016425,2]
[401471452,1768251043771,-150.0,0.0001643,2]
[401471454,1768251043780,-150.0,0.00016435,2]
[401471456,1768251043789,-150.0,0.00016437,2]
[401471458,1768251043799,-210.2736974,0.00016438,2]
[401471460,1768251043808,-500.0,0.00016438,2]
[401471462,1768251043819,-500.0,0.00016438,2]
[401471464,1768251043829,-500.0,0.00016438,2]
[401471466,1768251043838,-500.0,0.00016438,2]
[401471467,1768251043847,-500.0,0.00016438,2]
[401471468,1768251043856,-500.0,0.00016438,2]
[401471469,1768251043866,-500.0,0.00016438,2]
[401471470,1768251043875,-500.0,0.00016438,2]
[401471471,1768251043884,-500.0,0.00016438,2]
[401471472,1768251043893,-500.0,0.00016438,2]
[401471473,1768251043902,-500.0,0.00016438,2]
[401471474,1768251043912,-500.0,0.00016438,2]
[401471476,1768251043921,-500.0,0.00016438,2]
[401471477,1768251043930,-150.0,0.00016438,2]
[401471478,1768251043940,-600.0,0.00016438,2]
[401471479,1768251043949,-600.0,0.00016438,2]
[401471480,1768251043959,-327.15,0.00016438,2]
[401471481,1768251043971,-151.0,0.00016438,2]
[401471482,1768251043986,-151.0,0.00016438,2]
[401471483,1768251043996,-151.0,0.00016438,2]
[401471484,1768251044006,-151.0,0.00016438,2]
[401471485,1768251044017,-151.0,0.00016438,2]
[401471486,1768251044027,-151.0,0.00016438,2]
[401471487,1768251044036,-151.0,0.00016438,2]
[401471488,1768251044045,-151.0,0.00016438,2]
[401471489,1768251044055,-151.0,0.00016438,2]
[401471490,1768251044065,-249.176131,0.00016438,2]
[401471491,1768251044075,-151.0,0.00016438,2]
[401471492,1768251044085,-151.0,0.00016438,2]
[401471493,1768251044095,-151.0,0.00016438,2]
[401471494,1768251044104,-243.235488,0.00016438,2]
[401471495,1768251044114,-151.0,0.00016438,2]
[401471496,1768251044123,-151.0,0.00016438,2]
[401471497,1768251044133,-151.0,0.00016438,2]
[401471498,1768251044142,-151.0,0.00016438,2]
[401471499,1768251044152,-151.0,0.00016438,2]
[401471500,1768251044162,-151.0,0.00016438,2]
[401471501,1768251044172,-151.0,0.00016438,2]
[401471502,1768251044181,-151.0,0.00016438,2]
[401471503,1768251044191,-151.0,0.00016438,2]
[401471504,1768251044200,-189.779945,0.00016438,2]
[401471505,1768251044210,-210.425724,0.00016438,2]
[401471506,1768251044219,-151.0,0.00016438,2]
[401471507,1768251044229,-151.0,0.00016438,2]
[401471508,1768251044238,-151.0,0.00016438,2]
[401471509,1768251044248,-151.0,0.00016438,2]
[401471510,1768251044257,-151.0,0.00016438,2]
[401471511,1768251044266,-151.0,0.00016438,2]
[401471512,1768251044275,-151.0,0.00016438,2]
[401471513,1768251044285,-151.0,0.00016438,2]
[401471514,1768251044295,-151.0,0.00016438,2]
[401471515,1768251044304,-151.0,0.00016438,2]
[401471516,1768251044313,-151.0,0.00016438,2]
[401471517,1768251044323,-151.0,0.00016438,2]
[401471518,1768251044332,-151.0,0.00016438,2]
[401471519,1768251044342,-151.0,0.00016438,2]
[401471520,1768251044351,-171.498582,0.00016438,2]
[401471521,1768251044360,-151.0,0.00016438,2]
[401471523,1768251044369,-151.0,0.00016438,2]
[401471525,1768251044379,-151.0,0.00016438,2]
[401471527,1768251044388,-151.0,0.00016438,2]
[401471530,1768251044398,-151.0,0.00016438,2]
[401471531,1768251044408,-151.0,0.00016438,2]
[401471532,1768251044418,-151.0,0.00016438,2]
[401471533,1768251044428,-151.0,0.00016438,2]
[401471534,1768251044437,-151.0,0.00016438,2]
[401471535,1768251044447,-151.0,0.00016438,2]
[401471536,1768251044456,-209.244302,0.00016438,2]
[401471537,1768251044465,-151.0,0.00016438,2]
[401471538,1768251044475,-151.0,0.00016438,2]
[401471540,1768251044484,-151.0,0.00016438,2]
[401471541,1768251044493,-151.0,0.00016438,2]
[401471542,1768251044503,-151.0,0.00016438,2]
[401471543,1768251044512,-151.0,0.00016438,2]
[401471544,1768251044522,-153.21566,0.00016438,2]
[401471545,1768251044531,-187.206296,0.00016438,2]
[401471546,1768251044541,-151.0,0.00016438,2]
[401471547,1768251044550,-151.0,0.00016438,2]
[401471548,1768251044559,-151.0,0.00016438,2]
[401471549,1768251044569,-151.0,0.00016438,2]
[401471550,1768251044578,-151.0,0.00016438,2]
[401471551,1768251044588,-151.0,0.00016438,2]
[401471552,1768251044598,-151.0,0.00016438,2]
[401471553,1768251044607,-151.0,0.00016438,2]
[401471554,1768251044617,-151.0,0.00016438,2]
[401471555,1768251044627,-151.0,0.00016438,2]
[401471556,1768251044636,-151.0,0.00016438,2]
[401471557,1768251044645,-151.0,0.00016438,2]
[401471558,1768251044655,-151.0,0.00016438,2]
[401471559,1768251044664,-151.0,0.00016438,2]
[401471560,1768251044751,-151.0,0.00016438,2]
[401471561,1768251044760,-151.0,0.00016438,2]
[401471562,1768251044770,-151.0,0.00016438,2]
[401471563,1768251044780,-228.340506,0.00016438,2]
[401471564,1768251044789,-161.39391,0.00016438,2]
[401471565,1768251044798,-151.0,0.00016438,2]
[401471566,1768251044807,-151.0,0.00016438,2]
[401471567,1768251044817,-284.308386,0.00016438,2]
[401471568,1768251044827,-151.0,0.00016438,2]
[401471569,1768251044836,-151.0,0.00016438,2]
[401471570,1768251044846,-151.0,0.00016438,2]
[401471571,1768251044855,-151.0,0.00016438,2]
[401471572,1768251044865,-151.0,0.00016438,2]
[401471573,1768251044874,-151.0,0.00016438,2]
[401471574,1768251044883,-151.0,0.00016438,2]
[401471575,1768251044893,-151.0,0.00016438,2]
[401471576,1768251044902,-151.0,0.00016438,2]
[401471577,1768251044911,-151.0,0.00016438,2]
[401471578,1768251044920,-151.0,0.00016438,2]
[401471579,1768251044930,-151.0,0.00016438,2]
[401471580,1768251044940,-151.0,0.00016438,2]
[401471581,1768251044951,-281.122042,0.00016438,2]
[401471582,1768251044960,-151.0,0.00016438,2]
[401471583,1768251044970,-189.842185,0.00016438,2]
[401471584,1768251044982,-179.907006,0.00016438,2]
[401471585,1768251044991,-151.0,0.00016438,2]
[401471586,1768251045001,-151.0,0.00016438,2]
[401471587,1768251045011,-185.6480238,0.00016438,2]
[401471588,1768251045021,-151.0,0.00016438,2]
[401471589,1768251045031,-151.0,0.00016438,2]
[401471590,1768251045042,-261.952143,0.00016438,2]
[401471591,1768251045052,-190.712931,0.00016438,2]
[401471592,1768251045061,-1208.716747,0.00016438,2]
[401471593,1768251045070,-1208.716747,0.00016438,2]
[401471594,1768251045079,-1208.716747,0.00016438,2]
[401471595,1768251045088,-1208.716747,0.00016438,2]
[401471596,1768251045098,-1208.716747,0.00016438,2]
[401471597,1768251045108,-1208.716747,0.00016438,2]
[401471598,1768251045117,-1208.716747,0.00016438,2]
[401471599,1768251045127,-1208.716747,0.00016438,2]
[401471600,1768251045137,-1208.716747,0.00016438,2]
[401471601,1768251045146,-1208.716747,0.00016438,2]
[401471602,1768251045156,-1208.716747,0.00016438,2]
[401471603,1768251045165,-1208.716747,0.00016438,2]
[401471604,1768251045174,-1208.716747,0.00016438,2]
[401471605,1768251045183,-1208.716747,0.00016438,2]
[401471606,1768251045193,-1208.716747,0.00016438,2]
[401471607,1768251045203,-1208.716747,0.00016438,2]
[401471608,1768251045212,-1208.716747,0.00016438,2]
[401471609,1768251045222,-1208.716747,0.00016438,2]
[401471610,1768251045232,-1208.716747,0.00016438,2]
[401471611,1768251045241,-1208.716756,0.00016438,2]
[401471612,1768251045251,-548.389332,0.00016438,2]
[401471613,1768251045260,-548.389332,0.00016438,2]
[401471614,1768251045269,-548.389332,0.00016438,2]
[401471615,1768251045278,-548.389332,0.00016438,2]
[401471616,1768251045288,-548.389332,0.00016438,2]
[401471617,1768251045297,-548.389332,0.00016438,2]
[401471618,1768251045306,-548.389332,0.00016438,2]
[401471619,1768251045315,-548.389332,0.00016438,2]
[401471620,1768251045323,-548.389332,0.00016438,2]
[401471621,1768251045332,-548.389332,0.00016438,2]
[401471622,1768251045341,-548.389332,0.00016438,2]
[401471623,1768251045350,-548.389332,0.00016438,2]
[401471624,1768251045359,-548.389332,0.00016438,2]
[401471625,1768251045367,-548.389332,0.00016438,2]
[401471626,1768251045376,-548.389332,0.00016438,2]
[401471627,1768251045385,-548.389332,0.00016438,2]
[401471628,1768251045394,-548.389332,0.00016438,2]
[401471629,1768251045404,-548.389332,0.00016438,2]
[401471630,1768251045413,-548.389332,0.00016438,2]
[401471631,1768251045422,-548.389332,0.00016438,2]
[401471632,1768251045432,-1011.91,0.00016438,10]
[401471633,1768251045441,-151.0,0.00016438,2]
[401471634,1768251045451,-151.0,0.00016438,2]
[401471635,1768251045460,-174.035148,0.00016438,2]
[401471636,1768251045469,-232.623086,0.00016438,2]
[401471637,1768251045479,-232.623086,0.00016438,2]
[401471638,1768251045488,-232.623086,0.00016438,2]
[401471639,1768251045497,-232.623086,0.00016438,2]
[401471640,1768251045506,-232.623086,0.00016438,2]
[401471641,1768251045515,-232.623086,0.00016438,2]
[401471642,1768251045525,-232.623086,0.00016438,2]
[401471643,1768251045534,-232.623086,0.00016438,2]
[401471644,1768251045543,-232.623086,0.00016438,2]
[401471645,1768251045553,-151.0,0.00016438,2]
[401471646,1768251045562,-232.623086,0.00016438,2]
[401471647,1768251045571,-151.0,0.00016438,2]
[401471648,1768251045581,-232.623086,0.00016438,2]
[401471649,1768251045591,-151.0,0.00016438,2]
[401471650,1768251045600,-232.623086,0.00016438,2]
[401471651,1768251045609,-151.0,0.00016438,2]
[401471652,1768251045619,-232.623086,0.00016438,2]
[401471653,1768251045628,-151.0,0.00016438,2]
[401471654,1768251045637,-232.623086,0.00016438,2]
[401471655,1768251045646,-151.0,0.00016438,2]
[401471656,1768251045656,-232.623086,0.00016438,2]
[401471657,1768251045665,-151.0,0.00016438,2]
[401471658,1768251045674,-232.623086,0.00016438,2]
[401471659,1768251045683,-151.0,0.00016438,2]
[401471660,1768251045692,-232.623086,0.00016438,2]
[401471661,1768251045701,-151.0,0.00016438,2]
[401471662,1768251045710,-232.623086,0.00016438,2]
[401471663,1768251045719,-151.0,0.00016438,2]
[401471664,1768251045728,-232.623086,0.00016438,2]
[401471665,1768251045737,-151.0,0.00016438,2]
[401471666,1768251045746,-232.623081,0.00016438,2]
[401471667,1768251045755,-151.0,0.00016438,2]
[401471668,1768251045764,-151.0,0.00016438,2]
[401471669,1768251045773,-151.0,0.00016438,2]
[401471670,1768251045782,-151.0,0.00016438,2]
[401471671,1768251045791,-151.0,0.00016438,2]
[401471672,1768251045799,-210.032128,0.00016438,2]
[401471673,1768251045808,-236.433031,0.00016438,2]
[401471674,1768251045818,-236.433031,0.00016438,2]
[401471675,1768251045827,-236.433031,0.00016438,2]
[401471676,1768251045837,-236.433031,0.00016438,2]
[401471677,1768251045846,-236.433031,0.00016438,2]
[401471678,1768251045855,-236.433031,0.00016438,2]
[401471679,1768251045864,-236.433031,0.00016438,2]
[401471680,1768251045873,-236.433031,0.00016438,2]
[401471681,1768251045883,-236.433031,0.00016438,2]
[401471682,1768251045893,-236.433031,0.00016438,2]
[401471683,1768251045902,-236.433031,0.00016438,2]
[401471684,1768251045911,-236.433031,0.00016438,2]
[401471685,1768251045920,-236.433031,0.00016438,2]
[401471686,1768251045930,-236.433031,0.00016438,2]
[401471687,1768251045939,-236.433031,0.00016438,2]
[401471688,1768251045949,-236.433031,0.00016438,2]
[401471689,1768251045959,-236.433031,0.00016438,2]
[401471690,1768251045968,-236.433031,0.00016438,2]
[401471691,1768251045981,-236.433031,0.00016438,2]
[401471692,1768251045990,-236.433034,0.00016438,2]
[401471693,1768251046000,-151.0,0.00016438,2]
[401471694,1768251046009,-151.0,0.00016438,2]
[401471695,1768251046020,-151.0,0.00016438,2]
[401471696,1768251046030,-151.0,0.00016438,2]
[401471697,1768251046039,-151.0,0.00016438,2]
[401471698,1768251046050,-151.0,0.00016438,2]
[401471699,1768251046060,-194.176743,0.00016438,2]
[401471700,1768251046069,-156.245684,0.00016438,2]
[401471701,1768251046078,-156.245684,0.00016438,2]
[401471702,1768251046087,-156.245684,0.00016438,2]
[401471703,1768251046096,-156.245684,0.00016438,2]
[401471704,1768251046106,-156.245684,0.00016438,2]
[401471705,1768251046115,-156.245684,0.00016438,2]
[401471706,1768251046124,-156.245684,0.00016438,2]
[401471707,1768251046133,-156.245684,0.00016438,2]
[401471708,1768251046143,-156.245684,0.00016438,2]
[401471709,1768251046152,-156.245684,0.00016438,2]
[401471710,1768251046161,-301.213503,0.00016438,2]
[401471711,1768251046171,-156.245684,0.00016438,2]
[401471712,1768251046180,-156.245684,0.00016438,2]
[401471713,1768251046189,-156.245684,0.00016438,2]
[401471714,1768251046198,-156.245684,0.00016438,2]
[401471715,1768251046207,-156.245684,0.00016438,2]
[401471716,1768251046217,-156.245684,0.00016438,2]
[401471717,1768251046226,-156.245684,0.00016438,2]
[401471718,1768251046235,-156.245684,0.00016438,2]
[401471719,1768251046244,-156.245684,0.00016438,2]
[401471720,1768251046253,-151.0,0.00016438,2]
[401471721,1768251046263,-156.24569,0.00016438,2]
[401471722,1768251046273,-151.0,0.00016438,2]
[401471723,1768251046282,-151.0,0.00016438,2]
[401471724,1768251046291,-151.0,0.00016438,2]
[401471726,1768251046300,-151.0,0.00016438,2]
[401471727,1768251046308,-151.0,0.00016438,2]
[401471728,1768251046317,-151.0,0.00016438,2]
[401471729,1768251046326,-151.0,0.00016438,2]
[401471730,1768251046335,-151.0,0.00016438,2]
[401471732,1768251046344,-154.580471,0.00016438,2]
[401471734,1768251046353,-151.0,0.00016438,2]
[401471736,1768251046362,-169.745895,0.00016438,2]
[401471737,1768251046371,-151.0,0.00016438,2]
[401471738,1768251046380,-151.0,0.00016438,2]
[401471739,1768251046389,-151.0,0.00016438,2]
[401471740,1768251046398,-151.0,0.00016438,2]
[401471741,1768251046407,-274.564263,0.00016438,2]
[401471742,1768251046416,-151.0,0.00016438,2]
[401471743,1768251046425,-151.0,0.00016438,2]
[401471744,1768251046434,-151.0,0.00016438,2]
[401471745,1768251046442,-151.0,0.00016438,2]
[401471746,1768251046451,-151.0,0.00016438,2]
[401471747,1768251046460,-151.0,0.00016438,2]
[401471748,1768251046470,-151.0,0.00016438,2]
[401471749,1768251046479,-151.0,0.00016438,2]
[401471750,1768251046488,-151.0,0.00016438,2]
[401471751,1768251046498,-151.0,0.00016438,2]
[401471752,1768251046507,-151.0,0.00016438,2]
[401471754,1768251046516,-151.0,0.00016438,2]
[401471755,1768251046525,-151.0,0.00016438,2]
[401471756,1768251046534,-162.548266,0.00016438,2]
[401471757,1768251046542,-151.0,0.00016438,2]
[401471758,1768251046552,-797.617212,0.00016438,2]
[401471759,1768251046561,-797.617212,0.00016438,2]
[401471760,1768251046570,-797.617212,0.00016438,2]
[401471761,1768251046578,-797.617212,0.00016438,2]
[401471762,1768251046587,-797.617212,0.00016438,2]
[401471763,1768251046596,-797.617212,0.00016438,2]
[401471764,1768251046605,-797.617212,0.00016438,2]
[401471765,1768251046614,-797.617212,0.00016438,2]
[401471766,1768251046623,-797.617212,0.00016438,2]
[401471767,1768251046632,-797.617212,0.00016438,2]
[401471768,1768251046641,-797.617212,0.00016438,2]
[401471769,1768251046651,-797.617212,0.00016438,2]
[401471770,1768251046660,-797.617212,0.00016438,2]
[401471771,1768251046669,-797.617212,0.00016438,2]
[401471772,1768251046678,-797.617212,0.00016438,2]
[401471773,1768251046687,-797.617212,0.00016438,2]
[401471774,1768251046696,-797.617212,0.00016438,2]
[401471775,1768251046707,-797.617212,0.00016438,2]
[401471776,1768251046716,-797.617212,0.00016438,2]
[401471777,1768251046725,-797.61722,0.00016438,2]
[401471778,1768251046734,-208.08088,0.00016438,2]
[401471779,1768251046744,-208.08088,0.00016438,2]
[401471780,1768251046753,-208.08088,0.00016438,2]
[401471781,1768251046762,-208.08088,0.00016438,2]
[401471782,1768251046772,-208.08088,0.00016438,2]
[401471783,1768251046781,-208.08088,0.00016438,2]
[401471784,1768251046790,-208.08088,0.00016438,2]
[401471785,1768251046800,-208.08088,0.00016438,2]
[401471786,1768251046809,-208.08088,0.00016438,2]
[401471787,1768251046819,-208.08088,0.00016438,2]
[401471788,1768251046828,-208.08088,0.00016438,2]
[401471789,1768251046837,-208.08088,0.00016438,2]
[401471790,1768251046846,-208.08088,0.00016438,2]
[401471791,1768251046855,-208.08088,0.00016438,2]
[401471792,1768251046864,-208.08088,0.00016438,2]
[401471793,1768251046873,-208.08088,0.00016438,2]
[401471794,1768251046883,-1172.752852,0.00016438,2]
[401471795,1768251046892,-208.08088,0.00016438,2]
[401471796,1768251046901,-1172.752852,0.00016438,2]
[401471797,1768251046911,-208.08088,0.00016438,2]
[401471798,1768251046920,-1172.752852,0.00016438,2]
[401471799,1768251046930,-208.08088,0.00016438,2]
[401471800,1768251046939,-1172.752852,0.00016438,2]
[401471801,1768251046948,-208.080881,0.00016438,2]
[401471802,1768251046958,-1172.752852,0.00016438,2]
[401471803,1768251046967,-1172.752852,0.00016438,2]
[401471804,1768251046979,-1172.752852,0.00016438,2]
[401471805,1768251046988,-1172.752852,0.00016438,2]
[401471806,1768251046997,-1172.752852,0.00016438,2]
[401471807,1768251047006,-1172.752852,0.00016438,2]
[401471808,1768251047017,-1172.752852,0.00016438,2]
[401471809,1768251047026,-1172.752852,0.00016438,2]
[401471810,1768251047036,-1172.752852,0.00016438,2]
[401471811,1768251047045,-1172.752852,0.00016438,2]
[401471812,1768251047055,-1172.752852,0.00016438,2]
[401471813,1768251047064,-1172.752852,0.00016438,2]
[401471814,1768251047075,-1172.752852,0.00016438,2]
[401471815,1768251047085,-1172.752852,0.00016438,2]
[401471816,1768251047094,-1172.752852,0.00016438,2]
[401471817,1768251047103,-1172.75286,0.00016438,2]
[401471818,1768251047112,-151.0,0.00016438,2]
[401471819,1768251047121,-151.0,0.00016438,2]
[401471820,1768251047130,-151.756692,0.00016438,2]
[401471821,1768251047139,-151.0,0.00016438,2]
[401471822,1768251047148,-151.0,0.00016438,2]
[401471823,1768251047157,-151.0,0.00016438,2]
[401471824,1768251047166,-151.0,0.00016438,2]
[401471825,1768251047175,-151.0,0.00016438,2]
[401471826,1768251047184,-151.0,0.00016438,2]
[401471827,1768251047193,-151.0,0.00016438,2]
[401471828,1768251047202,-156.174364,0.00016438,2]
[401471829,1768251047211,-152.718156,0.00016438,2]
[401471830,1768251047220,-151.0,0.00016438,2]
[401471831,1768251047228,-151.0,0.00016438,2]
[401471832,1768251047238,-151.0,0.00016438,2]
[401471833,1768251047247,-151.0,0.00016438,2]
[401471834,1768251047256,-151.0,0.00016438,2]
[401471835,1768251047265,-184.549505,0.00016438,2]
[401471836,1768251047274,-184.549505,0.00016438,2]
[401471837,1768251047283,-184.549505,0.00016438,2]
[401471838,1768251047292,-184.549505,0.00016438,2]
[401471839,1768251047301,-184.549505,0.00016438,2]
[401471840,1768251047310,-184.549505,0.00016438,2]
[401471841,1768251047319,-184.549505,0.00016438,2]
[401471842,1768251047328,-184.549505,0.00016438,2]
[401471843,1768251047337,-184.549505,0.00016438,2]
[401471844,1768251047346,-184.549505,0.00016438,2]
[401471845,1768251047356,-184.549505,0.00016438,2]
[401471846,1768251047365,-184.549505,0.00016438,2]
[401471847,1768251047373,-184.549505,0.00016438,2]
[401471848,1768251047383,-184.549505,0.00016438,2]
[401471849,1768251047391,-184.549505,0.00016438,2]
[401471850,1768251047400,-184.549505,0.00016438,2]